bitfinex/quotes_ETHUSD_20220123
["timestamp","ask_amount","ask_price","bid_price","bid_amount"]
[1642940661334,0.03695,2489.8,2488.8,1.40800271]
[1642940661928,1.18935134,2489.8,2489.3,1.48622448]
[1642940662130,1.15240134,2489.8,2489.3,1.48622448]
[1642940662528,0.03713,2489.9,2489.3,1.48622448]
[1642940662731,0.03722,2490.3,2489.3,1.48622448]
[1642940662930,0.03722,2490.3,2489.7,1.10748925]
[1642940663230,0.13819997,2490.5,2489.3,1.48622448]
[1642940663231,0.03731,2490.4,2489.3,1.48622448]
[1642940663428,0.13819997,2490.5,2489.3,1.48622448]
[1642940663730,0.17568997,2490.5,2489.8,1.50010173]
[1642940663929,0.17568997,2490.5,2489.0,0.01349972]
[1642940664130,1.00551,2490.4,2489.0,0.01349972]
[1642940664328,0.03758,2490.3,2489.0,0.00130171]
[1642940664566,0.03758,2490.3,2488.5,0.16190171]
[1642940664567,1.0,2489.7,2488.5,0.16190171]
[1642940664766,4.47457129,2489.6,2488.5,0.16190171]
[1642940664965,1.11405227,2489.5,2489.0,1.20854573]
[1642940665167,1.0,2489.7,2489.0,1.20854573]
[1642940666171,1.15240134,2489.5,2489.0,1.20854573]
[1642940666374,0.03715,2489.9,2489.8,1.49278965]
[1642940666577,5.1,2489.8,2488.5,0.0001]
[1642940667184,1.1681,2490.2,2488.5,0.0001]
[1642940667185,4.6506,2491.8,2488.9,0.01240811]
[1642940667387,4.6506,2491.8,2488.5,0.0001]
[1642940667388,0.01220481,2491.8,2489.8,0.01278858]
[1642940667578,4.55600924,2492.8,2490.2,0.08646112]
[1642940667777,3.41237378,2495.5,2491.4,0.01233014]
[1642940667778,2.87870173,2493.2,2491.4,0.01233014]
[1642940667978,2.87870173,2493.2,2491.5,0.05234796]
[1642940667979,2.00933,2492.9,2491.5,0.05234796]
[1642940668235,10.05086348,2494.0,2492.5,7.4]
[1642940668236,0.00265348,2494.0,2492.5,7.4]
[1642940668431,0.5,2495.0,2492.5,7.4]
[1642940668432,0.00265348,2494.2,2492.6,6.34668709]
[1642940668631,6.0,2495.8,2493.0,0.01281189]
[1642940668833,0.00264912,2494.9,2493.7,7.43282561]
[1642940669036,0.00264912,2494.9,2494.2,0.01231731]
[1642940669235,0.00264912,2494.9,2494.3,1.17741751]
[1642940669236,4.912e-05,2494.9,2494.3,1.17741751]
[1642940669436,0.5,2497.2,2494.8,0.01215683]
[1642940669634,0.5,2497.2,2495.5,1.27514654]
[1642940669834,23.33,2497.3,2495.5,1.57514654]
[1642940670034,23.33,2497.3,2495.6,3.47592408]
[1642940670232,7.310208,2497.2,2495.5,4.89092408]
[1642940670431,7.310208,2497.2,2495.5,5.10412661]
[1642940670432,1.26343763,2497.1,2495.5,5.10412661]
[1642940670631,30.640208,2497.2,2495.6,1.13819997]
[1642940670934,7.310208,2497.2,2495.7,5.08154871]
[1642940671135,1.42991603,2496.7,2496.2,1.48401688]
[1642940671333,7.310208,2497.2,2496.2,1.48401688]
[1642940671540,1.17067993,2497.9,2496.3,4.95690426]
[1642940671734,23.33,2498.1,2496.4,0.20049]
[1642940671990,0.01284497,2498.3,2496.4,0.3]
[1642940672173,0.01284497,2498.3,2496.5,0.006266]
[1642940672371,0.01284497,2498.3,2496.4,0.3]
[1642940672372,1.25243637,2497.7,2496.4,0.3]
[1642940672573,0.01284497,2498.3,2496.6,0.13819997]
[1642940672782,1.11968871,2498.6,2498.0,1.254999]
[1642940672975,23.33,2498.9,2496.9,0.20049]
[1642940673178,23.33,2498.9,2497.1,1.20049]
[1642940673375,23.33,2498.9,2497.2,3.77592408]
[1642940673574,1.12903239,2498.8,2496.7,0.01212153]
[1642940673777,1.12903239,2498.8,2496.8,0.20043]
[1642940673976,1.26970098,2497.8,2496.8,0.20043]
[1642940674175,1.26970098,2497.8,2496.7,3.48804561]
[1642940674372,1.26970098,2497.8,2496.7,3.47592408]
[1642940674577,1.16074659,2497.4,2496.9,1.24567353]
[1642940674774,2.27326329,2498.7,2497.0,3.47592408]
[1642940674975,2.27326329,2498.7,2497.1,0.20049]
[1642940675175,2.27326329,2498.7,2497.3,1.0]
[1642940675375,0.04206333,2499.2,2497.4,3.48889837]
[1642940675578,0.04206333,2499.2,2498.3,1.37968773]
[1642940675837,0.04149491,2499.1,2498.4,3.47592408]
[1642940676138,0.04092649,2499.0,2498.6,0.0127808]
[1642940676335,2.649e-05,2499.0,2498.7,0.20049]
[1642940676538,0.08685181,2500.5,2498.9,7.1]
[1642940676738,0.08685181,2500.5,2499.9,4.32353155]
[1642940676948,1.61812028,2501.1,2499.9,4.32353155]
[1642940677334,1.61812028,2501.1,2500.0,3.47592408]
[1642940677540,1.61812028,2501.1,2500.7,8.79338995]
[1642940677739,2.72791595,2502.2,2500.9,7.4]
[1642940677937,7.48,2502.6,2501.0,4.05262246]
[1642940678240,2.23842729,2502.9,2501.6,0.01245957]
[1642940678440,0.01229261,2504.1,2501.8,7.44725317]
[1642940678645,5.17927091,2505.6,2501.8,7.44725317]
[1642940678646,1.44306536,2504.0,2503.0,0.01203645]
[1642940678846,1.44306536,2504.0,2501.9,79.33750863]
[1642940678847,5.15917091,2505.6,2503.9,0.0125414]
[1642940679042,3.47592408,2505.5,2503.8,0.6]
[1642940679242,7.48,2506.6,2503.2,0.1595]
[1642940679243,0.08685181,2504.9,2504.1,0.0127234]
[1642940679490,0.08685181,2504.9,2503.7,0.01252024]
[1642940679683,0.08685181,2504.9,2503.2,0.65999]
[1642940679684,1.48870725,2504.8,2503.3,1.50697652]
[1642940679886,0.08685181,2504.9,2503.3,0.13819997]
[1642940680087,0.08685181,2504.7,2503.3,4.05232402]
[1642940680286,0.08685181,2504.7,2503.3,4.35232402]
[1642940680487,0.08685181,2504.7,2503.6,1.31030136]
[1642940680688,0.08685181,2505.4,2503.7,3.47592408]
[1642940680890,0.08685181,2505.4,2504.2,0.01292794]
[1642940681109,2.09253879,2507.7,2504.2,1.63712794]
[1642940681110,1.40012226,2505.0,2504.2,1.63712794]
[1642940681487,1.40012226,2505.0,2504.3,3.47592408]
[1642940681692,0.0201,2507.8,2504.5,1.01284406]
[1642940681893,1.12622371,2506.7,2504.6,3.67641408]
[1642940682088,1.12622371,2506.7,2505.1,0.01252038]
[1642940682296,1.12622371,2506.7,2505.2,0.02318099]
[1642940682791,0.01207125,2507.5,2505.8,0.03300316]
[1642940682990,0.01221709,2508.3,2505.9,0.10106723]
[1642940683222,0.01239343,2507.6,2506.0,0.03559374]
[1642940683422,0.01239343,2507.6,2505.9,0.10106723]
[1642940683622,1.39822625,2505.5,2504.8,3.48859446]
[1642940683823,0.09924524,2507.6,2504.8,3.47592408]
[1642940683824,5.0,2507.3,2504.8,3.47592408]
[1642940684122,5.0,2507.3,2504.3,0.13819997]
[1642940684123,5.5201,2506.7,2504.3,0.13819997]
[1642940684322,3.47592408,2506.6,2504.3,0.13819997]
[1642940684526,0.01271664,2505.9,2504.3,0.13819997]
[1642940684731,1.54023984,2506.6,2504.5,0.01255435]
[1642940684934,0.09924524,2507.6,2504.5,0.01255435]
[1642940684935,0.09924524,2507.6,2505.1,0.01252445]
[1642940685131,0.01239343,2507.6,2505.1,0.01252445]
[1642940685327,1.35125569,2506.9,2506.5,1.46352895]
[1642940685528,1.35125569,2506.9,2505.7,0.01298608]
[1642940685928,2.61248825,2506.9,2506.3,1.21948268]
[1642940686132,2.61248825,2506.9,2505.7,0.01298608]
[1642940686133,2.61248825,2506.9,2504.8,1.0]
[1642940686330,2.61248825,2506.9,2504.8,0.01295485]
[1642940686530,1.18101231,2505.3,2504.8,0.01295485]
[1642940686733,3.51305681,2506.8,2504.3,0.15106207]
[1642940686983,3.51305681,2506.8,2504.3,0.13819997]
[1642940686984,0.5,2506.4,2504.3,0.13819997]
[1642940687181,1.33652862,2504.9,2504.3,0.13819997]
[1642940687385,1.63652862,2504.9,2504.3,0.13819997]
[1642940687585,1.0,2504.6,2504.0,0.01220697]
[1642940687786,1.0,2504.6,2503.1,0.01271228]
[1642940687787,1.97853273,2504.6,2503.1,0.01271228]
[1642940687984,0.97853273,2504.6,2503.1,0.01271228]
[1642940688186,0.2924,2504.9,2503.9,0.01280897]
[1642940688387,0.2924,2504.9,2503.2,0.1597]
[1642940688388,0.21159828,2504.8,2503.2,0.1597]
[1642940688586,0.21159828,2504.8,2503.0,0.2392672]
[1642940688785,0.21159828,2504.8,2503.4,0.0001]
[1642940688985,0.08685181,2504.7,2503.0,0.2392672]
[1642940689188,0.21159828,2504.8,2502.4,3.00216085]
[1642940689189,1.31593789,2503.2,2502.4,3.00216085]
[1642940689390,1.50030175,2503.1,2502.4,0.01209714]
[1642940689588,0.3,2503.0,2501.8,0.01259758]
[1642940689787,0.01213102,2504.1,2502.4,0.01296726]
[1642940689788,0.0053319,2504.1,2502.4,0.01296726]
[1642940689987,0.0053319,2504.1,2501.9,0.19962]
[1642940689988,0.19956,2504.0,2503.0,0.01206464]
[1642940690189,0.00264326,2504.3,2503.0,0.01206464]
[1642940690388,0.19956,2504.2,2503.0,0.01206464]
[1642940690827,0.19956,2504.2,2503.7,1.32546094]
[1642940691228,0.2924,2504.9,2504.1,0.01287052]
[1642940691632,0.19956,2504.8,2504.1,0.01287052]
[1642940691834,2.94280991,2504.8,2504.4,1.1341127]
[1642940692029,2.94280991,2504.8,2503.8,3.47592408]
[1642940692230,0.19956,2504.8,2503.8,3.19529168]
[1642940692432,0.2924,2504.9,2504.1,0.0126275]
[1642940692632,0.19956,2504.8,2503.7,9.13819997]
[1642940693630,1.0,2504.3,2503.7,9.13819997]
[1642940693834,0.49956,2504.3,2503.7,9.0]
[1642940694131,1.19956,2504.3,2503.7,9.0]
[1642940694567,1.28750188,2504.0,2503.7,9.0]
[1642940694771,2.65233402,2504.0,2503.7,9.0]
[1642940695171,2.65233402,2504.0,2503.1,0.01242862]
[1642940695172,1.19956,2503.8,2503.1,0.01242862]
[1642940695378,0.05640136,2503.7,2502.2,0.01225085]
[1642940695574,0.05640136,2503.7,2502.1,0.1597]
[1642940695575,1.0,2503.0,2502.1,0.1597]
[1642940695773,1.15535954,2502.7,2502.1,0.1597]
[1642940695972,1.35491954,2502.7,2502.1,0.1597]
[1642940696170,2.95491954,2502.7,2502.1,0.1597]
[1642940696372,1.44549617,2502.3,2502.1,0.1597]
[1642940696578,1.44549617,2502.3,2501.6,1.51576994]
[1642940696772,0.01833907,2502.2,2501.6,1.51576994]
[1642940697171,1.35723619,2502.1,2501.3,0.01278192]
[1642940697375,0.19956,2502.0,2501.3,0.01278192]
[1642940697573,0.20542258,2502.0,2501.1,0.02]
[1642940697975,1.85679619,2502.1,2501.1,0.02]
[1642940698225,1.0,2502.0,2501.1,0.02]
[1642940698418,1.0,2502.0,2501.1,1.36256949]
[1642940698419,1.16546951,2501.9,2501.1,1.36256949]
[1642940698619,0.19956,2501.8,2501.1,1.36256949]
[1642940699023,6e-05,2502.6,2501.5,1.49913846]
[1642940699224,0.00270326,2503.7,2501.9,0.01255528]
[1642940699422,0.03983599,2503.7,2502.0,0.00670855]
[1642940699622,0.03983599,2503.7,2501.9,0.01255528]
[1642940699820,0.03719273,2503.7,2501.9,0.01255528]
[1642940700024,1.41855626,2502.6,2501.2,0.1598]
[1642940700224,1.17746079,2502.0,2501.2,0.1598]
[1642940700427,0.02789372,2502.5,2501.2,0.1598]
[1642940700925,1.99897705,2502.6,2501.2,0.1598]
[1642940701124,1.3884401,2501.4,2501.2,0.1598]
[1642940701323,1.15467076,2501.3,2501.2,0.1598]
[1642940702771,1.15467076,2501.3,2501.1,0.02]
[1642940704576,1.0,2501.2,2501.1,0.02]
[1642940704775,1.15467076,2501.3,2501.1,0.02]
[1642940705727,1.3884401,2501.4,2501.1,0.02]
[1642940706325,1.0,2501.7,2501.1,0.02]
[1642940706532,1.0008191,2502.7,2501.1,0.02]
[1642940706533,0.00264326,2502.7,2501.1,0.02]
[1642940706730,1.54337866,2501.9,2501.6,1.17631676]
[1642940706928,0.00264326,2502.7,2501.6,1.17631676]
[1642940707131,1.0006255,2503.1,2501.6,1.17631676]
[1642940707132,0.00264326,2503.1,2501.6,1.17631676]
[1642940707528,1.21279788,2501.9,2501.1,0.03205076]
[1642940708129,1.0,2501.6,2501.1,0.02]
[1642940708333,4.3807236,2501.8,2501.1,0.02]
[1642940708527,1.50891505,2501.2,2501.1,0.02]
[1642940708930,1.3,2501.9,2501.1,0.02]
[1642940709764,1.6,2501.9,2501.1,0.02]
[1642940710165,2.00175,2502.3,2501.1,0.02]
[1642940710166,1.0,2502.3,2501.1,0.02]
[1642940710371,0.3,2502.2,2501.1,0.02]
[1642940710565,1.34468917,2501.6,2501.1,0.02]
[1642940712069,1.0,2501.8,2501.1,0.02]
[1642940712269,5.66686983,2502.5,2501.1,0.02]
[1642940712270,1.03783273,2502.5,2501.1,0.02]
[1642940712469,0.03713273,2502.5,2501.1,0.2316755]
[1642940712671,0.0026451,2503.3,2501.8,1.33280974]
[1642940712869,0.0026451,2503.3,2501.9,3.49438692]
[1642940713073,1.5226464,2502.9,2502.2,1.54200487]
[1642940713319,1.4726464,2502.9,2501.8,1.64523134]
[1642940713520,1.4726464,2502.9,2501.8,0.3124216]
[1642940713722,1.4726464,2502.9,2501.8,0.0124216]
[1642940714218,1.35085394,2501.9,2501.3,1.29097768]
[1642940714423,1.35085394,2501.9,2501.4,3.49438692]
[1642940714620,1.35085394,2501.9,2501.2,0.01241751]
[1642940714820,0.95345576,2501.4,2501.2,0.01241751]
[1642940715626,0.95345576,2501.4,2501.1,0.02]
[1642940716625,2.08274524,2501.4,2501.1,0.02]
[1642940717477,0.03713273,2502.2,2501.1,0.21962]
[1642940717680,0.0026451,2502.9,2501.4,1.0]
[1642940717878,0.0026451,2502.9,2501.5,3.51847771]
[1642940718079,0.0026451,2502.9,2501.8,0.01205045]
[1642940718276,0.01203329,2504.0,2501.9,0.03550843]
[1642940718479,0.03713273,2503.9,2501.9,0.23512843]
[1642940718677,0.03713273,2503.9,2501.9,0.19962]
[1642940718880,1.13058566,2502.6,2502.3,1.37551556]
[1642940719080,1.13058566,2502.6,2501.8,3.50643737]
[1642940719379,1.13058566,2502.6,2501.2,3.50694813]
[1642940719578,1.13058566,2502.6,2501.2,0.01256121]
[1642940719776,1.13058566,2502.6,2501.2,0.21218121]
[1642940719976,1.35082828,2501.9,2501.3,1.14274476]
[1642940720177,1.35082828,2501.9,2501.3,3.49438692]
[1642940720379,1.13058566,2502.6,2501.4,0.19962]
[1642940720923,1.13058566,2502.6,2501.8,0.01226016]
[1642940721122,1.13058566,2502.6,2501.9,0.19962]
[1642940721326,1.13058566,2502.6,2501.8,1.41739479]
[1642940721545,1.24159669,2502.4,2501.8,3.3751532]
[1642940721724,3.58388383,2503.8,2501.8,2.01739479]
[1642940721725,3.49703202,2503.8,2501.8,2.01739479]
[1642940721927,0.0026451,2503.8,2501.9,1.60475463]
[1642940722126,7.51713273,2503.9,2502.0,0.00807204]
[1642940722324,7.51713273,2503.9,2502.1,1.40513463]
[1642940722325,8.14221194,2503.8,2502.1,1.40513463]
[1642940722522,0.66221194,2503.7,2502.2,3.50648767]
[1642940722727,0.66221194,2503.7,2502.8,1.1579198]
[1642940722927,1.41705223,2503.5,2502.9,3.49438692]
[1642940723126,0.66221194,2503.4,2502.9,4.11909985]
[1642940723332,0.66221194,2503.4,2502.7,0.13819997]
[1642940724335,1.17604237,2502.9,2502.7,0.13819997]
[1642940724610,1.72487142,2502.9,2502.0,0.01256838]
[1642940724991,1.67487142,2502.9,2502.0,0.21218838]
[1642940725189,1.67487142,2502.9,2502.0,0.01256838]
[1642940725392,1.31205377,2502.4,2502.0,0.01256838]
[1642940725597,0.54882905,2502.4,2502.0,1.47532931]
[1642940725795,0.54882905,2502.4,2502.1,3.4466202]
[1642940725997,0.54882905,2502.4,2502.0,0.01256838]
[1642940726397,0.31310545,2502.4,2502.0,0.01256838]
[1642940726597,0.0026451,2503.5,2502.0,0.01256838]
[1642940726598,0.31310545,2503.4,2502.0,0.01256838]
[1642940726801,1.48178079,2502.7,2502.0,0.01256838]
[1642940727001,1.79488624,2502.7,2502.0,0.01256838]
[1642940728219,0.31310545,2502.7,2502.1,3.04284647]
[1642940728422,0.31310545,2502.7,2502.0,0.01256838]
[1642940728423,0.30564002,2502.7,2502.2,3.99002151]
[1642940728620,0.30564002,2502.7,2502.0,0.01256838]
[1642940728820,0.30564002,2502.6,2501.8,0.43819997]
[1642940729024,0.30564002,2502.6,2501.8,0.13819997]
[1642940729222,0.30564002,2502.6,2501.6,0.10106723]
[1642940729430,1.0,2502.8,2501.6,0.10106723]
[1642940729431,0.30564002,2502.5,2501.6,0.10106723]
[1642940729826,0.30564002,2502.7,2501.6,0.10106723]
[1642940730426,0.01256285,2503.5,2502.0,1.36351266]
[1642940730629,0.0026451,2503.7,2501.9,0.01246945]
[1642940730824,0.08685181,2503.8,2501.9,0.01246945]
[1642940731025,0.08685181,2503.8,2502.0,1.3722712]
[1642940731429,0.08685181,2503.8,2502.0,1.6722712]
[1642940731627,1.40162641,2502.3,2501.9,0.01246945]
[1642940731828,1.40162641,2502.3,2501.6,0.10106723]
[1642940733173,1.0,2502.8,2501.6,0.10106723]
[1642940733676,3.4466202,2503.4,2501.6,0.10106723]
[1642940733875,1.0003499,2503.5,2501.6,0.10106723]
[1642940734076,1.30267878,2503.0,2502.5,1.47268231]
[1642940734280,3.4492653,2503.8,2501.6,0.10106723]
[1642940734281,0.08685181,2503.7,2502.1,3.57731637]
[1642940734586,7.48,2503.5,2502.1,0.3]
[1642940734776,7.48,2503.5,2502.1,0.49962]
[1642940734975,7.48,2503.5,2502.1,0.19962]
[1642940735822,7.48,2503.5,2501.7,0.01246427]
[1642940735823,0.10700465,2503.4,2501.7,0.01246427]
[1642940736020,4.49085443,2503.4,2501.7,0.01246427]
[1642940736220,0.10765859,2503.3,2501.7,0.01246427]
[1642940736424,0.01289531,2503.1,2501.6,0.26086723]
[1642940736620,0.01045167,2503.0,2501.6,0.1598]
[1642940736819,1.39986817,2501.8,2501.6,0.1598]
[1642940737223,1.39986817,2501.8,2501.1,0.15819997]
[1642940738222,1.0026451,2502.7,2501.5,1.39534761]
[1642940738424,1.3026451,2502.7,2501.6,3.4466202]
[1642940738621,0.0026451,2502.7,2501.1,3.60482017]
[1642940738821,1.0,2503.0,2501.4,0.01210142]
[1642940739021,0.01560394,2503.3,2501.4,0.01210142]
[1642940739221,1.14009784,2502.4,2501.7,1.48054694]
[1642940739667,1.14009784,2502.4,2501.4,0.01210142]
[1642940739872,1.14009784,2502.4,2501.1,3.60482017]
[1642940740070,1.14009784,2502.4,2501.1,0.15819997]
[1642940740272,1.14009784,2502.4,2501.1,0.45819997]
[1642940740472,1.14009784,2502.4,2501.2,4.49735743]
[1642940740673,1.44049812,2501.6,2501.2,4.4795129]
[1642940740873,1.44049812,2501.6,2501.1,0.15819997]
[1642940741099,1.44049812,2501.6,2501.1,0.02]
[1642940741277,0.01562437,2502.5,2501.1,0.02]
[1642940741477,0.01539175,2502.6,2501.1,0.02]
[1642940742074,0.01274665,2502.6,2501.1,0.02]
[1642940742482,0.01274665,2502.6,2501.1,0.15819997]
[1642940742675,1.00048,2502.9,2501.1,3.60482017]
[1642940743227,0.0122667,2503.2,2501.8,1.16482204]
[1642940743522,1.37478273,2502.4,2501.9,3.92614636]
[1642940743921,1.37478273,2502.4,2501.6,0.01257243]
[1642940744124,1.37478273,2502.4,2501.3,4.31947542]
[1642940744322,1.37478273,2502.4,2501.4,0.3]
[1642940744523,1.37478273,2502.4,2501.3,5.57420749]
[1642940744723,1.37478273,2502.4,2501.3,4.11985542]
[1642940744923,1.37478273,2502.4,2501.1,0.35781997]
[1642940745128,1.0004588,2503.1,2501.2,3.82790154]
[1642940745129,1.19750845,2501.9,2501.2,3.82790154]
[1642940745729,1.19750845,2501.9,2501.1,0.15819997]
[1642940746327,0.03713273,2502.5,2501.1,0.15819997]
[1642940746528,0.33713273,2502.5,2501.1,0.15819997]
[1642940746967,1.33776273,2502.5,2501.1,0.15819997]
[1642940747167,2.33776273,2502.5,2501.1,0.15819997]
[1642940747364,1.45623821,2501.2,2501.1,0.15819997]
[1642940747569,1.45623821,2501.2,2501.1,0.02]
[1642940753957,1.45623821,2501.2,2501.1,0.0001]
[1642940754160,3.55,2501.1,2500.2,0.00144259]
[1642940754360,0.02464208,2501.0,2500.2,0.00144259]
[1642940754573,1.62464208,2501.0,2500.2,0.00144259]
[1642940754974,1.6,2501.0,2500.2,0.00144259]
[1642940755979,1.0013334,2500.8,2500.2,0.00144259]
[1642940756180,1.3013334,2500.8,2500.2,0.00144259]
[1642940756383,0.3,2500.7,2500.2,0.00144259]
[1642940756581,1.17960744,2500.6,2500.2,0.00144259]
[1642940757883,0.3,2500.5,2500.2,0.00144259]
[1642940758087,1.0382415,2500.4,2499.7,0.02]
[1642940758319,1.0382415,2500.4,2499.7,0.02144258]
[1642940758320,1.03857273,2500.4,2499.7,0.02144258]
[1642940758519,1.4578146,2499.8,2499.7,0.02144258]
[1642940759718,1.4578146,2499.8,2499.6,0.02]
[1642940760421,1.7578146,2499.8,2499.5,0.02]
[1642940760626,2.0578146,2499.8,2499.5,0.02]
[1642940760824,1.4578146,2499.8,2499.5,0.02]
[1642940761226,1.00177,2499.5,2498.2,0.01276313]
[1642940761623,1.60177,2499.5,2498.4,0.04481054]
[1642940762067,1.60177,2499.5,2498.3,0.04537897]
[1642940762268,1.50974803,2498.7,2498.3,0.04537897]
[1642940762469,1.50974803,2498.7,2498.4,1.1929474]
[1642940762867,1.50974803,2498.7,2498.5,0.04424212]
[1642940763671,1.50974803,2498.7,2498.3,0.04537897]
[1642940764270,1.50974803,2498.7,2498.2,1.22631046]
[1642940764672,1.50974803,2498.7,2498.3,0.04537897]
[1642940765734,1.00178,2499.5,2498.6,0.72217588]
[1642940765945,12.50671181,2500.6,2499.1,1.22631046]
[1642940765946,0.03713273,2500.4,2499.1,1.22631046]
[1642940766139,0.03713273,2500.4,2498.8,0.0203916]
[1642940766438,0.03713273,2500.4,2498.9,0.04196843]
[1642940766639,0.03713273,2500.4,2499.1,1.32019474]
[1642940766640,1.43927992,2499.8,2499.1,1.32019474]
[1642940766838,1.43927992,2499.8,2498.9,0.04196843]
[1642940767040,1.43927992,2499.8,2499.2,0.04026316]
[1642940767239,3.01790019,2500.6,2499.5,0.62299747]
[1642940767442,3.01790019,2500.6,2499.2,3.21124961]
[1642940767443,0.45910099,2500.8,2499.6,3.4466202]
[1642940767641,0.45910099,2500.8,2499.4,0.01247974]
[1642940767841,2.00238,2501.2,2499.4,0.01247974]
[1642940768445,1.48866699,2500.4,2499.8,1.41917874]
[1642940768642,1.48866699,2500.4,2499.9,1.44871308]
[1642940769467,1.48866699,2500.4,2499.4,0.01247974]
[1642940770073,1.00114,2501.1,2499.4,0.01247974]
[1642940770074,2.00114,2501.1,2499.4,0.01247974]
[1642940770274,5.75033679,2501.7,2499.4,0.01247974]
[1642940770275,2.01462637,2501.6,2499.4,0.21209974]
[1642940770470,1.01364477,2501.6,2500.3,1.15472591]
[1642940770670,1.01364477,2501.6,2500.5,0.01479844]
[1642940771076,1.01364477,2501.6,2500.1,0.2392672]
[1642940771274,1.5292916,2500.7,2500.1,0.2392672]
[1642940772175,7.48,2501.3,2500.1,1.46313225]
[1642940772374,7.48,2501.3,2500.2,3.47310475]
[1642940772774,1.0,2501.2,2500.2,3.47310475]
[1642940773521,1.45257752,2500.8,2500.2,3.88085323]
[1642940773723,1.45257752,2500.8,2500.2,1.40774848]
[1642940773921,7.48,2501.3,2500.5,0.72462129]
[1642940774322,7.48,2501.3,2500.7,0.03645858]
[1642940774521,7.48,2501.3,2500.5,0.72462129]
[1642940774721,7.48,2501.3,2500.5,1.02462129]
[1642940774921,7.48,2501.3,2500.7,1.28125804]
[1642940775321,7.48,2501.3,2500.5,0.49962]
[1642940775523,7.48,2501.3,2500.5,0.3]
[1642940775827,7.48,2501.3,2500.4,2.00513463]
[1642940776425,7.48,2501.3,2500.7,1.15037022]
[1642940776626,7.48,2501.3,2500.8,0.00796045]
[1642940777175,7.48,2501.3,2500.7,1.75037022]
[1642940777576,7.48,2501.3,2501.0,0.47324082]
[1642940777777,7.48,2501.3,2500.7,1.75037022]
[1642940778278,7.48,2501.9,2500.7,1.75037022]
[1642940778477,1.36444464,2501.6,2500.7,1.75037022]
[1642940779077,1.36444464,2501.6,2500.8,1.24355427]
[1642940779277,1.36444464,2501.6,2500.8,2.03435427]
[1642940779479,1.36444464,2501.6,2500.8,0.7908]
[1642940780726,7.48,2501.9,2500.5,1.55311501]
[1642940780727,7.48,2501.9,2500.9,0.59499133]
[1642940780932,1.0004,2502.9,2501.4,0.3129811]
[1642940781141,0.04,2503.0,2502.9,0.00081053]
[1642940781343,0.04,2503.0,2502.9,1.1871]
[1642940781930,1.49078911,2503.0,2502.9,1.1871]
[1642940782530,7.4,2502.9,2501.8,3.7118]
[1642940782730,7.4,2502.9,2501.1,0.01231857]
[1642940782731,14.88,2502.9,2501.1,0.01231857]
[1642940782929,14.88,2502.9,2501.4,1.54977625]
[1642940783129,7.48,2502.9,2501.5,3.43940516]
[1642940783333,0.04,2503.0,2501.6,0.19962]
[1642940783529,0.04,2503.0,2501.9,1.13561944]
[1642940783729,0.04,2503.0,2502.0,3.43940516]
[1642940784134,1.31012946,2502.8,2502.2,1.32982702]
[1642940785176,1.31012946,2502.8,2502.0,3.73940516]
[1642940785378,1.31012946,2502.8,2501.9,1.43561944]
[1642940785578,0.04,2503.0,2502.7,1.13561944]
[1642940785781,0.04,2503.0,2502.3,0.10106723]
[1642940785981,0.04,2503.0,2502.3,0.40106723]
[1642940786481,0.04,2503.0,2502.3,0.70106723]
[1642940786682,0.04,2503.0,2502.3,1.83669148]
[1642940786683,1.10286708,2502.9,2502.3,1.83669148]
[1642940786882,1.10286708,2502.9,2502.3,0.10106723]
[1642940787883,0.04,2503.0,2502.3,0.10106723]
[1642940788922,1.51399922,2502.6,2502.3,0.10106723]
[1642940789524,1.51399922,2502.6,2502.2,0.13819997]
[1642940790928,7.48,2502.9,2502.2,0.13819997]
[1642940791130,7.48,2502.9,2502.4,0.51683854]
[1642940791334,7.48,2502.9,2502.5,3.45530208]
[1642940791533,7.48,2502.9,2502.6,0.01092548]
[1642940791734,7.48,2502.9,2502.5,0.5377]
[1642940791985,7.48,2502.9,2502.5,0.2377]
[1642940792175,7.48,2502.9,2502.6,1.43393174]
[1642940792377,0.04,2503.0,2502.6,1.43393174]
[1642940792574,0.04,2503.0,2502.6,0.3]
[1642940792575,0.0001,2503.0,2502.6,0.3]
[1642940792975,0.0001,2503.0,2502.6,1.0]
[1642940793175,0.0001,2503.0,2502.5,1.03732]
[1642940793176,0.0001,2503.0,2502.5,0.8377]
[1642940793477,0.0001,2503.0,2502.5,0.5377]
[1642940793675,0.0001,2503.0,2502.5,0.2377]
[1642940793875,1.47628832,2502.9,2502.5,0.2377]
[1642940804820,1.42628832,2502.9,2502.5,0.2377]
[1642940806978,1.72628832,2502.9,2501.5,0.01272529]
[1642940807184,0.01291656,2502.6,2501.0,0.1598]
[1642940807382,0.01291656,2502.6,2502.5,11.19805848]
[1642940807677,0.01517131,2502.4,2501.0,0.1598]
[1642940807878,0.01517131,2502.4,2501.4,1.1467406]
[1642940808077,1.0,2502.4,2501.6,1.18202729]
[1642940808277,0.01291656,2502.6,2502.2,1.1467406]
[1642940808480,8.1422555,2503.9,2502.0,1.40089889]
[1642940808481,0.08685181,2503.3,2502.7,0.80174574]
[1642940808679,0.09002924,2503.6,2502.4,0.01269637]
[1642940808680,0.07713273,2503.6,2502.4,0.01269637]
[1642940809078,0.04,2503.6,2502.4,0.01269637]
[1642940809279,0.04,2503.6,2502.5,0.02139387]
[1642940809477,0.04,2503.6,2502.5,0.22101387]
[1642940809878,0.04,2503.6,2502.5,0.19962]
[1642940810927,0.04,2503.6,2502.6,0.03880444]
[1642940811127,0.04,2503.6,2502.4,3.90619842]
[1642940811327,0.04,2503.6,2502.4,4.10581842]
[1642940811527,0.04,2503.6,2502.4,3.90619842]
[1642940811727,0.04,2503.6,2502.4,4.10581842]
[1642940811928,0.0101,2503.0,2502.4,4.10581842]
[1642940812131,0.0101,2503.0,2502.5,1.33601036]
[1642940812331,0.0101,2503.0,2502.5,1.61654703]
[1642940812532,0.0101,2503.0,2502.4,0.13819997]
[1642940812731,0.0101,2503.0,2502.1,3.6937]
[1642940813531,1.55758165,2503.0,2502.1,3.6937]
[1642940813932,0.08685181,2502.9,2501.9,1.57192583]
[1642940814135,0.08685181,2502.9,2501.9,0.1598]
[1642940814333,0.08685181,2502.9,2500.8,7.46856106]
[1642940814577,0.08685181,2502.9,2500.8,11.37346106]
[1642940814779,23.41685181,2502.9,2500.9,3.46671142]
[1642940814984,1.00045,2502.7,2501.7,2.50488234]
[1642940815181,2.12630707,2503.0,2502.1,0.65780307]
[1642940815182,0.2435,2503.0,2502.1,0.65780307]